fUSD/lending_fUSD_20250809
["ID","MTS","AMOUNT","RATE_DAILY","PERIOD"]
[378103484,1754733047412,-151.0,0.00019872,2]
[378103485,1754733047422,-151.0,0.00019872,2]
[378103486,1754733047432,-151.0,0.00019872,2]
[378103487,1754733047442,-151.0,0.00019872,2]
[378103488,1754733047452,-151.0,0.00019872,2]
[378103489,1754733047462,-151.0,0.00019872,2]
[378103490,1754733047472,-151.0,0.00019872,2]
[378103491,1754733047482,-151.0,0.00019872,2]
[378103492,1754733047491,-151.0,0.00019872,2]
[378103493,1754733047503,-157.764751,0.00019872,2]
[378103494,1754733047513,-151.0,0.00019872,2]
[378103495,1754733047523,-151.0,0.00019872,2]
[378103496,1754733047532,-522.67726,0.00019872,2]
[378103497,1754733047542,-522.67726,0.00019872,2]
[378103498,1754733047552,-522.67726,0.00019872,2]
[378103499,1754733047561,-522.67726,0.00019872,2]
[378103500,1754733047572,-522.67726,0.00019872,2]
[378103501,1754733047583,-522.67726,0.00019872,2]
[378103502,1754733047592,-151.0,0.00019872,2]
[378103503,1754733047603,-151.0,0.00019872,2]
[378103504,1754733047612,-151.0,0.00019872,2]
[378103505,1754733047623,-1155.80655,0.00019872,2]
[378103506,1754733047634,-1155.80655,0.00019872,2]
[378103507,1754733047649,-1155.80655,0.00019872,2]
[378103508,1754733047661,-825.069676,0.00019872,2]
[378103509,1754733047671,-151.0,0.00019872,2]
[378103510,1754733047681,-825.069676,0.00019872,2]
[378103511,1754733047691,-151.0,0.00019872,2]
[378103512,1754733047701,-825.069676,0.00019872,2]
[378103513,1754733047711,-1155.80655,0.00019872,2]
[378103514,1754733047721,-1155.80655,0.00019872,2]
[378103515,1754733047731,-1155.80655,0.00019872,2]
[378103516,1754733047741,-825.069676,0.00019872,2]
[378103517,1754733047753,-825.069676,0.00019872,2]
[378103518,1754733047764,-825.069676,0.00019872,2]
[378103519,1754733047774,-475.812687,0.00019872,2]
[378103520,1754733047784,-475.812687,0.00019872,2]
[378103521,1754733047795,-475.812687,0.00019872,2]
[378103522,1754733047804,-475.812687,0.00019872,2]
[378103523,1754733047815,-475.812687,0.00019872,2]
[378103524,1754733047827,-475.812687,0.00019872,2]
[378103525,1754733047836,-151.0,0.00019872,2]
[378103526,1754733047846,-151.0,0.00019872,2]
[378103527,1754733047855,-151.0,0.00019872,2]
[378103528,1754733047865,-151.0,0.00019872,2]
[378103529,1754733047875,-151.0,0.00019872,2]
[378103530,1754733047884,-288.05289,0.00019872,2]
[378103531,1754733047894,-288.05289,0.00019872,2]
[378103532,1754733047905,-288.05289,0.00019872,2]
[378103533,1754733047915,-288.05289,0.00019872,2]
[378103534,1754733047924,-151.0,0.00019872,2]
[378103535,1754733047935,-151.0,0.00019872,2]
[378103536,1754733047944,-151.0,0.00019872,2]
[378103537,1754733047954,-151.0,0.00019872,2]
[378103538,1754733047963,-151.0,0.00019872,2]
[378103539,1754733047973,-188.12652,0.00019872,2]
[378103540,1754733047983,-151.0,0.00019872,2]
[378103541,1754733047993,-151.0,0.00019872,2]
[378103542,1754733048003,-232.923901,0.00019872,2]
[378103543,1754733048012,-188.712148,0.00019872,2]
[378103544,1754733048022,-188.712148,0.00019872,2]
[378103545,1754733048033,-188.712148,0.00019872,2]
[378103546,1754733048043,-188.712148,0.00019872,2]
[378103547,1754733048053,-1233.735342,0.00019872,2]
[378103548,1754733048063,-1233.735342,0.00019872,2]
[378103549,1754733048074,-1233.735342,0.00019872,2]
[378103550,1754733048085,-1233.735342,0.00019872,2]
[378103551,1754733048394,-25264.0093333,0.00019872,2]
[378103552,1754733048404,-25264.0093333,0.00019872,2]
[378103553,1754733048413,-200.0,0.00019872,2]
[378103554,1754733048423,-200.0,0.00019872,2]
[378103555,1754733048433,-200.0,0.00019872,2]
[378103556,1754733048442,-200.0,0.00019872,2]
[378103557,1754733048452,-200.0,0.00019872,2]
[378103558,1754733048461,-200.0,0.00019872,2]
[378103559,1754733048471,-25264.0093333,0.00019872,2]
[378103560,1754733048480,-200.0,0.00019872,2]
[378103561,1754733048490,-200.0,0.00019872,2]
[378103562,1754733048499,-200.0,0.00019872,2]
[378103563,1754733048509,-200.0,0.00019872,2]
[378103564,1754733048518,-200.0,0.00019872,2]
[378103565,1754733048528,-200.0,0.00019872,2]
[378103566,1754733048537,-200.0,0.00019872,2]
[378103567,1754733048547,-262.742513,0.00019872,2]
[378103568,1754733048557,-151.0,0.00019872,2]
[378103569,1754733048567,-151.0,0.00019872,2]
[378103570,1754733048576,-223.063832,0.00019872,2]
[378103571,1754733048586,-223.063832,0.00019872,2]
[378103572,1754733048595,-14787.0945416,0.00019872,2]
[378103573,1754733048605,-151.0,0.00019872,2]
[378103574,1754733048615,-151.0,0.00019872,2]
[378103575,1754733048624,-223.063832,0.00019872,2]
[378103576,1754733048634,-223.063832,0.00019872,2]
[378103577,1754733048644,-159.775808,0.00019873,2]
[378103578,1754733048653,-500.0,0.00019873,2]
[378103579,1754733048663,-150.0,0.00019875,4]
[378103580,1754733048672,-150.0,0.00019878,4]
[378103581,1754733048682,-1000.0,0.00019879,2]
[378103582,1754733048693,-151.0,0.00019879,2]
[378103583,1754733048703,-151.0,0.00019879,2]
[378103584,1754733048712,-151.0,0.00019879,2]
[378103585,1754733048721,-151.0,0.00019879,2]
[378103586,1754733048731,-151.0,0.00019879,2]
[378103587,1754733048741,-179.519004,0.00019879,2]
[378103588,1754733048753,-179.519004,0.00019879,2]
[378103589,1754733048762,-177.24688554,0.00019879,2]
[378103590,1754733048772,-262.14570458,0.00019879,2]
[378103591,1754733048782,-373.82508376,0.00019879,2]
[378103592,1754733048792,-500.0,0.00019879,2]
[378103593,1754733048805,-500.0,0.00019879,2]
[378103594,1754733048815,-500.0,0.00019879,2]
[378103595,1754733048825,-164.65300419,0.00019879,2]
[378103596,1754733048837,-500.0,0.00019879,2]
[378103597,1754733048846,-500.0,0.00019879,2]
[378103598,1754733048856,-500.0,0.00019879,2]
[378103599,1754733048865,-500.0,0.00019879,2]
[378103600,1754733048875,-500.0,0.00019879,2]
[378103601,1754733048885,-500.0,0.00019879,2]
[378103602,1754733048895,-500.0,0.00019879,2]
[378103603,1754733048904,-500.0,0.00019879,2]
[378103604,1754733048914,-500.0,0.00019879,2]
[378103605,1754733048924,-500.0,0.00019879,2]
[378103606,1754733048944,-500.0,0.00019879,2]
[378103607,1754733048958,-500.0,0.00019879,2]
[378103608,1754733048967,-500.0,0.00019879,2]
[378103609,1754733048978,-500.0,0.00019879,2]
[378103610,1754733048987,-500.0,0.00019879,2]
[378103611,1754733048997,-500.0,0.00019879,2]
[378103612,1754733049006,-499091.47874803,0.0001988,2]
[378103613,1754733049016,-151.0,0.0001988,2]
[378103614,1754733049026,-151.0,0.0001988,2]
[378103615,1754733049035,-151.0,0.0001988,2]
[378103616,1754733049045,-203.398139,0.0001988,2]
[378103617,1754733049056,-203.398139,0.0001988,2]
[378103618,1754733049066,-151.0,0.0001988,2]
[378103619,1754733049076,-151.0,0.0001988,2]
[378103620,1754733049087,-151.771381,0.0001988,2]
[378103621,1754733049096,-151.0,0.0001988,2]
[378103622,1754733049106,-151.0,0.0001988,2]
[378103623,1754733049116,-327.722612,0.0001988,2]
[378103624,1754733049126,-327.722612,0.0001988,2]
[378103625,1754733049136,-151.0,0.0001988,2]
[378103626,1754733049145,-262.133171,0.0001988,2]
[378103627,1754733049155,-262.133171,0.0001988,2]
[378103628,1754733049165,-238.49168,0.0001988,2]
[378103629,1754733049174,-151.0,0.0001988,2]
[378103630,1754733049183,-225.04924,0.0001988,2]
[378103631,1754733049193,-252.955841,0.0001988,2]
[378103632,1754733049202,-252.955841,0.0001988,2]
[378103633,1754733049212,-252.955841,0.0001988,2]
[378103634,1754733049222,-252.955841,0.0001988,2]
[378103635,1754733049231,-151.0,0.0001988,2]
[378103636,1754733049241,-151.0,0.0001988,2]
[378103637,1754733049251,-151.0,0.0001988,2]
[378103638,1754733049261,-151.0,0.0001988,2]
[378103639,1754733049270,-849.896263,0.0001988,2]
[378103640,1754733049281,-849.896263,0.0001988,2]
[378103641,1754733049290,-163.604592,0.0001988,2]
[378103642,1754733049300,-163.604592,0.0001988,2]
[378103643,1754733049310,-152.112252,0.0001988,2]
[378103644,1754733049320,-209.26142,0.0001988,2]
[378103645,1754733049330,-209.26142,0.0001988,2]
[378103646,1754733049340,-151.0,0.0001988,2]
[378103647,1754733049350,-151.0,0.0001988,2]
[378103648,1754733049360,-152.006357,0.0001988,2]
[378103649,1754733049370,-683.816444,0.0001988,2]
[378103650,1754733049379,-683.816444,0.0001988,2]
[378103651,1754733049389,-151.0,0.0001988,2]
[378103652,1754733049400,-151.0,0.0001988,2]
[378103653,1754733049410,-151.0,0.0001988,2]
[378103654,1754733049420,-151.0,0.0001988,2]
[378103655,1754733049429,-1000.0,0.0001988,2]
[378103656,1754733049439,-1000.0,0.0001988,2]
[378103657,1754733049449,-1000.0,0.0001988,2]
[378103658,1754733049459,-1000.0,0.0001988,2]
[378103659,1754733049468,-1000.0,0.0001988,2]
[378103660,1754733049478,-151.0,0.0001988,2]
[378103661,1754733049488,-151.0,0.0001988,2]
[378103662,1754733049497,-151.0,0.0001988,2]
[378103663,1754733049507,-151.0,0.0001988,2]
[378103664,1754733049517,-6420.993513,0.0001988,2]
[378103665,1754733049528,-6420.993513,0.0001988,2]
[378103666,1754733049538,-6420.993513,0.0001988,2]
[378103667,1754733049548,-6420.993513,0.0001988,2]
[378103668,1754733049558,-367.666036,0.0001988,2]
[378103669,1754733049569,-367.666036,0.0001988,2]
[378103670,1754733049579,-151.0,0.0001988,2]
[378103671,1754733049589,-151.0,0.0001988,2]
[378103672,1754733049600,-151.0,0.0001988,2]
[378103673,1754733049610,-151.0,0.0001988,2]
[378103674,1754733049620,-151.0,0.0001988,2]
[378103675,1754733049629,-151.0,0.0001988,2]
[378103676,1754733049639,-339.45474,0.0001988,2]
[378103677,1754733049649,-151.0,0.0001988,2]
[378103678,1754733049659,-151.0,0.0001988,2]
[378103679,1754733049669,-339.45474,0.0001988,2]
[378103680,1754733049679,-367.981484,0.0001988,2]
[378103681,1754733049688,-151.0,0.0001988,2]
[378103682,1754733049698,-151.0,0.0001988,2]
[378103683,1754733049708,-367.981484,0.0001988,2]
[378103684,1754733049718,-179.519004,0.0001988,2]
[378103685,1754733049727,-179.519004,0.0001988,2]
[378103686,1754733049737,-182.579961,0.0001988,2]
[378103687,1754733049751,-182.579961,0.0001988,2]
[378103688,1754733049761,-151.0,0.0001988,2]
[378103689,1754733049771,-268.474356,0.0001988,2]
[378103690,1754733049781,-268.474356,0.0001988,2]
[378103691,1754733049792,-1334.745,0.0001988,2]
[378103692,1754733049803,-151.0,0.0001988,2]
[378103693,1754733049812,-422.337109,0.0001988,2]
[378103694,1754733049823,-151.0,0.0001988,2]
[378103695,1754733049833,-422.337109,0.0001988,2]
[378103696,1754733049842,-2330.808831,0.0001988,2]
[378103697,1754733049852,-2330.808831,0.0001988,2]
[378103698,1754733049862,-284.51788633,0.0001988,2]
[378103699,1754733049872,-151.0,0.0001988,2]
[378103700,1754733049881,-211.443982,0.0001988,2]
[378103701,1754733049891,-151.0,0.0001988,2]
[378103702,1754733049900,-151.0,0.0001988,2]
[378103703,1754733049913,-246.33215,0.0001988,2]
[378103704,1754733049924,-246.33215,0.0001988,2]
[378103705,1754733049933,-175.692278,0.0001988,2]
[378103706,1754733049943,-175.692278,0.0001988,2]
[378103707,1754733049953,-485.583231,0.0001988,2]
[378103708,1754733049963,-259.183057,0.0001988,2]
[378103709,1754733049974,-485.583231,0.0001988,2]
[378103710,1754733049984,-259.183057,0.0001988,2]
[378103711,1754733049994,-160.853363,0.0001988,2]
[378103712,1754733050003,-151.0,0.0001988,2]
[378103713,1754733050013,-168.815596,0.0001988,2]
[378103714,1754733050024,-151.0,0.0001988,2]
[378103715,1754733050034,-227.03408,0.0001988,2]
[378103716,1754733050043,-283.397124,0.0001988,2]
[378103717,1754733050053,-283.397124,0.0001988,2]
[378103718,1754733050062,-151.0,0.0001988,2]
[378103719,1754733050072,-268.131114,0.0001988,2]
[378103720,1754733050082,-151.0,0.0001988,2]
[378103721,1754733050091,-151.0,0.0001988,2]
[378103722,1754733050101,-151.0,0.0001988,2]
[378103723,1754733050111,-151.0,0.0001988,2]
[378103724,1754733050122,-522.67726,0.0001988,2]
[378103725,1754733050132,-522.67726,0.0001988,2]
[378103726,1754733050142,-151.0,0.0001988,2]
[378103727,1754733050151,-1155.80655,0.0001988,2]
[378103728,1754733050160,-151.0,0.0001988,2]
[378103729,1754733050170,-825.069676,0.0001988,2]
[378103730,1754733050180,-1155.80655,0.0001988,2]
[378103731,1754733050189,-825.069676,0.0001988,2]
[378103732,1754733050200,-475.812687,0.0001988,2]
[378103733,1754733050210,-475.812687,0.0001988,2]
[378103734,1754733050220,-159.894918,0.0001988,2]
[378103735,1754733050229,-151.0,0.0001988,2]
[378103736,1754733050239,-288.05289,0.0001988,2]
[378103737,1754733050248,-288.05289,0.0001988,2]
[378103738,1754733050258,-151.0,0.0001988,2]
[378103739,1754733050268,-151.0,0.0001988,2]
[378103740,1754733050279,-151.0,0.0001988,2]
[378103741,1754733050288,-188.712148,0.0001988,2]
[378103742,1754733050298,-188.712148,0.0001988,2]
[378103743,1754733050308,-1233.735342,0.0001988,2]
[378103744,1754733050317,-1233.735342,0.0001988,2]
[378103745,1754733050327,-151.0,0.0001988,2]
[378103746,1754733050336,-223.063832,0.0001988,2]
[378103747,1754733050347,-151.0,0.0001988,2]
[378103748,1754733050356,-223.063832,0.0001988,2]
[378103749,1754733050366,-151.0,0.00019886,2]
[378103750,1754733050375,-151.0,0.00019886,2]
[378103751,1754733050385,-151.0,0.00019886,2]
[378103752,1754733050396,-151.0,0.00019886,2]
[378103753,1754733050405,-151.0,0.00019886,2]
[378103754,1754733050415,-192.60481,0.00019886,2]
[378103755,1754733050425,-192.60481,0.00019886,2]
[378103756,1754733050435,-420.174669,0.00019886,2]
[378103757,1754733050445,-151.0,0.00019886,2]
[378103758,1754733050455,-151.0,0.00019886,2]
[378103759,1754733050464,-151.0,0.00019886,2]
[378103760,1754733050475,-151.0,0.00019886,2]
[378103761,1754733050490,-286.494581,0.00019886,2]
[378103762,1754733050502,-286.494581,0.00019886,2]
[378103763,1754733050511,-506.41299,0.00019886,2]
[378103764,1754733050521,-506.41299,0.00019886,2]
[378103765,1754733050531,-151.0,0.00019886,2]
[378103766,1754733050540,-154.673509,0.00019886,2]
[378103767,1754733050550,-607.361256,0.00019886,2]
[378103768,1754733050559,-607.361256,0.00019886,2]
[378103769,1754733050569,-217.977738,0.00019886,2]
[378103770,1754733050585,-151.0,0.00019886,2]
[378103771,1754733050595,-217.977738,0.00019886,2]
[378103772,1754733050604,-151.0,0.00019886,2]
[378103773,1754733050613,-247.045846,0.00019886,2]
[378103774,1754733050622,-151.0,0.00019886,2]
[378103775,1754733050631,-185.983433,0.00019886,2]
[378103776,1754733050641,-185.983433,0.00019886,2]
[378103777,1754733050650,-169.251826,0.00019886,2]
[378103778,1754733050660,-169.251826,0.00019886,2]
[378103779,1754733050669,-169.251826,0.00019886,2]
[378103780,1754733050678,-169.251826,0.00019886,2]
[378103781,1754733050688,-169.251826,0.00019886,2]
[378103782,1754733050697,-169.251826,0.00019886,2]
[378103783,1754733050707,-766.364442,0.00019886,2]
[378103784,1754733050716,-766.364442,0.00019886,2]
[378103785,1754733050726,-202.422011,0.00019886,2]
[378103786,1754733050735,-202.422011,0.00019886,2]
[378103787,1754733050748,-151.0,0.00019886,2]
[378103788,1754733050758,-151.0,0.00019886,2]
[378103789,1754733050767,-151.0,0.00019886,2]
[378103790,1754733050778,-151.0,0.00019886,2]
[378103791,1754733050787,-154.057695,0.00019886,2]
[378103792,1754733050798,-151.0,0.00019886,2]
[378103793,1754733050807,-268.474356,0.00019886,2]
[378103794,1754733050817,-268.474356,0.00019886,2]
[378103795,1754733050826,-2330.808831,0.00019886,2]
[378103796,1754733050836,-2330.808831,0.00019886,2]
[378103797,1754733050845,-151.0,0.00019886,2]
[378103798,1754733050855,-175.692278,0.00019886,2]
[378103799,1754733050865,-175.692278,0.00019886,2]
[378103800,1754733050874,-485.583231,0.00019886,2]
[378103801,1754733050883,-259.183057,0.00019886,2]
[378103802,1754733050893,-485.583231,0.00019886,2]
[378103803,1754733050902,-259.183057,0.00019886,2]
[378103804,1754733050912,-151.0,0.00019886,2]
[378103805,1754733050921,-151.0,0.00019886,2]
[378103806,1754733050931,-151.0,0.00019886,2]
[378103807,1754733050940,-151.0,0.00019886,2]
[378103808,1754733050950,-151.0,0.00019886,2]
[378103809,1754733050960,-151.0,0.00019886,2]
[378103810,1754733050969,-522.67726,0.00019886,2]
[378103811,1754733050978,-522.67726,0.00019886,2]
[378103812,1754733050988,-151.0,0.00019886,2]
[378103813,1754733050998,-1155.80655,0.00019886,2]
[378103814,1754733051009,-825.069676,0.00019886,2]
[378103815,1754733051018,-1155.80655,0.00019886,2]
[378103816,1754733051028,-825.069676,0.00019886,2]
[378103817,1754733051037,-151.0,0.00019886,2]
[378103818,1754733051047,-151.0,0.00019886,2]
[378103819,1754733051057,-188.712148,0.00019886,2]
[378103820,1754733051066,-188.712148,0.00019886,2]
[378103821,1754733051076,-1233.735342,0.00019886,2]
[378103822,1754733051086,-1233.735342,0.00019886,2]
[378103823,1754733051096,-151.0,0.00019886,2]
[378103824,1754733051106,-151.0,0.00019886,2]
[378103825,1754733051115,-150.0,0.00019886,4]
[378103826,1754733051126,-156.32,0.00019894,2]
[378103827,1754733051135,-200.0,0.00019897,2]
[378103828,1754733051145,-500.0,0.00019897,2]
[378103829,1754733051155,-246.33215,0.000199,2]
[378103830,1754733051164,-246.33215,0.000199,2]
[378103831,1754733051173,-283.397124,0.000199,2]
[378103832,1754733051183,-283.397124,0.000199,2]
[378103833,1754733051192,-151.0,0.000199,2]
[378103834,1754733051202,-475.812687,0.000199,2]
[378103835,1754733051211,-475.812687,0.000199,2]
[378103836,1754733051221,-156.631187,0.000199,2]
[378103837,1754733051231,-300.0,0.000199,7]
[378103838,1754733051240,-150.0,0.00019919,4]
[378103839,1754733051250,-150.0,0.00019943,4]
[378103840,1754733051260,-372.63,0.00019948,2]
[378103841,1754733051269,-150.0,0.0001995,4]
[378103842,1754733051279,-175.62,0.00019952,2]
[378103843,1754733051288,-150.0,0.00019953,4]
[378103844,1754733051298,-150.0,0.00019964,4]
[378103845,1754733051307,-150.0,0.00019964,4]
[378103846,1754733051317,-150.0,0.0001998,4]
[378103847,1754733051327,-1289.80818597,0.00019985,2]
[378103848,1754733051338,-150.0,0.00019988,4]
[378103849,1754733051347,-168.0,0.0001999,2]
[378103850,1754733051357,-3537.56,0.0002,2]
[378103851,1754733051367,-5178.82682768,0.0002,2]
[378103852,1754733051376,-1000.0,0.0002,2]
[378103853,1754733051386,-354.28,0.0002,2]
[378103854,1754733051395,-163.31,0.0002,2]
[378103855,1754733051404,-529.81,0.0002,2]
[378103856,1754733051414,-170.48,0.0002,2]
[378103857,1754733051424,-150.0,0.00020009,4]
[378103858,1754733051434,-150.0,0.00020016,4]
[378103859,1754733051443,-150.0,0.00020029,4]
[378103860,1754733051452,-150.0,0.00020037,2]
[378103861,1754733051462,-150.0,0.0002004,4]
[378103862,1754733051471,-150.0,0.00020042,4]
[378103863,1754733051482,-250.0,0.00020043,2]
[378103864,1754733051491,-150.0,0.00020049,4]
[378103865,1754733051500,-150.0,0.00020053,4]
[378103866,1754733051510,-940.0,0.00020066,2]
[378103867,1754733051520,-150.0,0.00020089,4]
[378103868,1754733051530,-150.0,0.00020089,4]
[378103869,1754733051539,-168.0,0.00020089,2]
[378103870,1754733051549,-150.0,0.00020098,4]
[378103871,1754733051559,-150.0,0.00020104,4]
[378103872,1754733051568,-150.0,0.0002012,4]
[378103873,1754733051577,-500.0,0.00020122,2]
[378103874,1754733051588,-500.0,0.00020122,2]
[378103875,1754733051597,-500.0,0.00020122,2]
[378103876,1754733051607,-150.0,0.00020122,2]
[378103877,1754733051616,-150.0,0.00020137,4]
[378103878,1754733051628,-150.0,0.00020142,4]
[378103879,1754733051637,-150.0,0.00020148,4]
[378103880,1754733051647,-500.0,0.00020153,4]
[378103881,1754733051656,-250.0,0.00020153,2]
[378103882,1754733051666,-2500.0,0.00020153,2]
[378103883,1754733051675,-300.0,0.00020153,2]
[378103884,1754733051685,-300.0,0.00020153,2]
[378103885,1754733051695,-500.0,0.00020153,2]
[378103886,1754733051704,-250.0,0.00020153,2]
[378103887,1754733051713,-500.0,0.00020153,2]
[378103888,1754733051723,-150.0,0.00020156,4]
[378103889,1754733051732,-150.0,0.00020162,4]
[378103890,1754733051742,-450.60775032,0.00020171,2]
[378103891,1754733051754,-150.0,0.00020179,4]
[378103892,1754733051763,-150.0,0.00020186,4]
[378103893,1754733051773,-150.0,0.00020187,4]
[378103894,1754733051782,-161.72,0.00020187,2]
[378103895,1754733051793,-150.0,0.00020198,4]
[378103896,1754733051802,-150.0,0.00020198,4]
[378103897,1754733051812,-888.0,0.00020199,3]
[378103898,1754733051822,-167.98,0.00020199,2]
[378103899,1754733051832,-888.0,0.000202,3]
[378103900,1754733051841,-150.0,0.00020231,4]
[378103901,1754733051851,-150.0,0.00020234,4]
[378103902,1754733051861,-150.0,0.00020234,4]
[378103903,1754733051870,-150.0,0.00020248,4]
[378103904,1754733051879,-2135.53270228,0.00020252,2]
[378103905,1754733051888,-150.0,0.00020254,4]
[378103906,1754733051897,-150.0,0.00020276,4]
[378103907,1754733051907,-150.0,0.00020276,4]
[378103908,1754733051917,-150.0,0.00020283,4]
[378103909,1754733051926,-2396.56,0.000203,2]
[378103910,1754733051936,-150.0,0.00020307,4]
[378103911,1754733051945,-150.0,0.00020307,4]
[378103912,1754733051955,-150.0,0.0002032,4]
[378103913,1754733051964,-150.0,0.00020324,4]
[378103914,1754733051973,-150.0,0.0002033,4]
[378103915,1754733051985,-151.0,0.00020338,2]
[378103916,1754733051995,-151.0,0.00020338,2]
[378103917,1754733052004,-151.0,0.00020338,2]
[378103918,1754733052013,-626.770474,0.00020338,2]
[378103919,1754733052022,-626.770474,0.00020338,2]
[378103920,1754733052032,-151.0,0.00020338,2]
[378103921,1754733052042,-151.0,0.00020338,2]
[378103922,1754733052056,-151.0,0.00020341,2]
[378103923,1754733052065,-151.0,0.00020341,2]
[378103924,1754733052074,-151.0,0.00020341,2]
[378103925,1754733052084,-151.0,0.00020341,2]
[378103926,1754733052093,-151.0,0.00020341,2]
[378103927,1754733052103,-151.0,0.00020341,2]
[378103928,1754733052112,-151.0,0.00020341,2]
[378103929,1754733052121,-150.0,0.00020347,4]
[378103930,1754733052131,-150.0,0.00020354,4]
[378103931,1754733052140,-150.0,0.00020365,4]
[378103932,1754733052149,-150.0,0.0002038,4]
[378103933,1754733052159,-150.0,0.0002038,4]
[378103934,1754733052168,-150.0,0.0002038,4]
[378103935,1754733052177,-168.0,0.00020381,2]
[378103936,1754733052187,-1680.0,0.00020384,2]
[378103937,1754733052196,-151.0,0.00020393,2]
[378103938,1754733052205,-339.45474,0.00020393,2]
[378103939,1754733052215,-151.0,0.00020393,2]
[378103940,1754733052225,-339.45474,0.00020393,2]
[378103941,1754733052234,-367.981484,0.00020393,2]
[378103942,1754733052245,-151.0,0.00020393,2]
[378103943,1754733052254,-367.981484,0.00020393,2]
[378103944,1754733052264,-182.579961,0.00020393,2]
[378103945,1754733052273,-182.579961,0.00020393,2]
[378103946,1754733052283,-151.0,0.00020393,2]
[378103947,1754733052292,-422.337109,0.00020393,2]
[378103948,1754733052301,-151.0,0.00020393,2]
[378103949,1754733052310,-422.337109,0.00020393,2]
[378103950,1754733052319,-151.0,0.00020393,2]
[378103951,1754733052329,-161.584053,0.00020393,2]
[378103952,1754733052338,-288.05289,0.00020393,2]
[378103953,1754733052348,-288.05289,0.00020393,2]
[378103954,1754733052357,-151.0,0.00020393,2]
[378103955,1754733052367,-223.063832,0.00020393,2]
[378103956,1754733052376,-223.063832,0.00020393,2]
[378103957,1754733052386,-6420.993513,0.00020395,2]
[378103958,1754733052395,-6420.993513,0.00020395,2]
[378103959,1754733052406,-367.666036,0.00020395,2]
[378103960,1754733052417,-367.666036,0.00020395,2]
[378103961,1754733052426,-151.0,0.00020395,2]
[378103962,1754733052436,-151.0,0.00020395,2]
[378103963,1754733052448,-151.0,0.00020395,2]
[378103964,1754733052461,-151.0,0.00020395,2]
[378103965,1754733052470,-500.0,0.00020396,2]
[378103966,1754733052699,-351.0,0.00020396,2]
[378103967,1754733052710,-500.0,0.00020396,2]
[378103968,1754733052719,-150.0,0.00020396,2]
[378103969,1754733052730,-151.0,0.00020396,2]
[378103970,1754733052752,-151.0,0.00020396,2]
[378103971,1754733052768,-150.0,0.00020405,4]
[378103972,1754733052778,-150.0,0.0002041,4]
[378103974,1754733052788,-150.0,0.00020416,4]
[378103975,1754733052797,-415.74206446,0.00020421,2]
[378103978,1754733052808,-168.0,0.00020422,2]
[378103980,1754733052818,-151.0,0.00020428,2]
[378103982,1754733052827,-151.0,0.00020428,2]
[378103984,1754733052838,-151.0,0.00020428,2]
[378103986,1754733052848,-179.519004,0.00020428,2]
[378103988,1754733052857,-179.519004,0.00020428,2]
[378103990,1754733052867,-150.0,0.00020432,4]
[378103992,1754733052876,-150.0,0.00020446,4]
[378103994,1754733052885,-150.0,0.00020453,4]